Cogmind - Beta 16.1 @@@ ROGUE MODE // 2026.04.22 @ 22:38:15 Player: Shimejimeji Result: Self-destructed Performance ------------- Evolutions (6) 3000 Regions Visited (19) 3800 Robots Destroyed (146) 730 Value Destroyed (4934) 4934 Prototype IDs (51) 1020 Alien Tech Used (0) 0 Bonus (2828) 2828 TOTAL SCORE: 16312 Bonus ------- High Alert Combat Kills 55 Follower Combat Kills 621 Aligned with FarCom 300 Met Imprinter 300 Met Warlord at Base 500 MAIN.C Attacked Warlord 500 Warlord Defense Kills 812 Friendly Fire -260 Cogmind --------- Core Integrity 1131/1150 Matter 130/300 Energy 66/665 System Corruption 0% Temperature Cool (0) Movement Hovering (65) Location -4/Factory Parts ------- > --- POWER (2) -------- Neutrino Core > --- PROPULSION (6) --- Gravmag Array Combat Gravmag System Combat Gravmag System Combat Gravmag System Improved Linear Gravjet > --- UTILITY (8) ------ Lightpack 2.0 Energy Well Advanced Targeting Computer Force Field Hacking Suite Hacking Suite > --- WEAPON (3) ------- Heavy Beamcaster Enhanced Autogun Compact Linear Accelerator > --- INVENTORY (40) --- Angular Momentum Engine Antimatter Reactor Improved Heavy Treads Improved Armor Integrity Analyzer Hacking Drone Bay (1/1) Phasing AFG Vortex Rail (11) Heavy Autocannon Signal Generator Signal Generator Peak State ------------ > --- POWER ------------ Neutrino Core > --- PROPULSION ------- Gravmag Array Combat Gravmag System Combat Gravmag System Combat Gravmag System Improved Linear Gravjet > --- UTILITY ---------- Lightpack 2.0 Energy Well Advanced Targeting Computer Force Field Hacking Suite Hacking Suite > --- WEAPON ----------- Heavy Beamcaster Enhanced Autogun Compact Linear Accelerator > --- INVENTORY -------- Angular Momentum Engine Fission Core Antimatter Reactor Improved Heavy Treads Centrium Wheel Advanced Cryofiber Web Cooling System Stasis Canceller Shock Absorption System Authchip [Power] Authchip [Device] Recalibrator Hacking Drone Bay Phasing AFG Dimensional Node Initializer Dispersion Rifle Vortex Rail Vortex Rail Vortex Rail Slug Cannon Slug Cannon Heavy Autocannon Heavy Rocket Launcher Precision Grenade Launcher Improved Plasma Cutter Signal Generator Signal Generator [Rating: 128] Favorites ----------- Power Light Nuclear Core Engine Angular Momentum Engine Power Core Light Nuclear Core Reactor Antimatter Reactor Propulsion Light Treads Treads Light Treads Leg Carbon-fiber Leg Hover Unit Gravmag Array Flight Unit Improved VTOL Module Utility Lightpack 2.0 Device Improved Trap Scanner Storage Lightpack 2.0 Processor Advanced Targeting Computer Hackware Hacking Suite Protection Improved Core Shielding Weapon Enhanced Autogun Energy Gun Lightning Gun Energy Cannon Beam Cannon Ballistic Gun Enhanced Autogun Ballistic Cannon Magnetic Acceleration Cannon Launcher Heavy Rocket Launcher Special Weapon Mining Laser Slashing Weapon Ripper Special Melee Weapon Dirty Datajack Build | -11 -10 -10 -10 -9 -8 -8 -8 -8 -6 -6 -6 -6 -5 -5 -5 -5 -5 -4 -4 ------- Run | Yrd Mat Min Exi Min Mat Sto Rec Scr Fac Low Low Zio Pro Fac Upp Upp War Pro Fac Slots Evolved 12 | . . . . . 4 . . . 4 . . . . 2 . . . . 2 Power 1 | . . . . . . . . . . . . . . . . . . . 1 Propulsion 4 | . . . . . 1 . . . 2 . . . . . . . . . 1 Utility 6 | . . . . . 2 . . . 2 . . . . 2 . . . . . Weapon 1 | . . . . . 1 . . . . . . . . . . . . . . Parts Attached 161 | 7 12 . 1 . 22 23 2 1 41 3 1 2 . 11 2 2 8 18 5 Power 18 | 1 2 . . . 2 2 1 . 3 . . . . 1 . . . 6 . Engine 8 | 1 1 . . . 1 1 . . 2 . . . . 1 . . . 1 . Core 7 | . 1 . . . 1 1 1 . 1 . . . . . . . . 2 . Reactor 3 | . . . . . . . . . . . . . . . . . . 3 . Propulsion 39 | 2 3 . . . 7 5 1 . 16 . . . . . 1 . 1 2 1 Treads 16 | . 3 . . . 6 4 1 . 2 . . . . . . . . . . Leg 7 | 2 . . . . 1 . . . 4 . . . . . . . . . . Wheel . | . . . . . . . . . . . . . . . . . . . . Hover 15 | . . . . . . . . . 10 . . . . . 1 . 1 2 1 Flight 1 | . . . . . . 1 . . . . . . . . . . . . . Utility 36 | 2 2 . 1 . 3 . . . 12 1 . 2 . 5 1 . 2 2 3 Device 18 | 1 . . . . . . . . 6 1 . 2 . 3 . . 1 2 2 Storage 5 | 1 1 . 1 . 1 . . . 1 . . . . . . . . . . Processor 5 | . 1 . . . . . . . 2 . . . . 1 . . 1 . . Hackware 5 | . . . . . 2 . . . 1 . . . . 1 . . . . 1 Protection 3 | . . . . . . . . . 2 . . . . . 1 . . . . Artifact . | . . . . . . . . . . . . . . . . . . . . Weapon 68 | 2 5 . . . 10 16 . 1 10 2 1 . . 5 . 2 5 8 1 Energy Gun 29 | . 1 . . . 6 8 . . 2 1 1 . . 3 . 1 1 4 1 Energy Cannon 8 | . 2 . . . 3 . . . 2 . . . . 1 . . . . . Ballistic Gun 9 | 2 . . . . 1 4 . . 1 . . . . 1 . . . . . Ballistic Cannon 5 | . . . . . . . . 1 1 . . . . . . . 2 1 . Launcher 10 | . 2 . . . . 3 . . 2 . . . . . . 1 1 1 . Special Weapon 2 | . . . . . . 1 . . . . . . . . . . . 1 . Impact Weapon . | . . . . . . . . . . . . . . . . . . . . Slashing Weapon 4 | . . . . . . . . . 2 1 . . . . . . . 1 . Piercing Weapon . | . . . . . . . . . . . . . . . . . . . . Special Melee Weapon 1 | . . . . . . . . . . . . . . . . . 1 . . Unidentified Prototypes 15 | . . . . . 4 4 . . 2 . . 2 . . . . 3 . . Corrupted Parts 2 | . . . . . . . . . . . . . . 1 . . . 1 . System Corruption 8 | . . . . . . . . . . . . . . 4 . . . 4 . Parts Lost 42 | . 2 1 . . . 1 . . 8 . 1 . . 12 . 2 1 14 . Power 8 | . 1 . . . . . . . 2 . . . . 1 . . . 4 . Propulsion 12 | . 1 . . . . . . . 4 . . . . 4 . . . 3 . Utility 8 | . . 1 . . . . . . 1 . 1 . . 2 . . 1 2 . Weapon 14 | . . . . . . 1 . . 1 . . . . 5 . 2 . 5 . Highest Loss Streak 11 | . 1 1 . . . 1 . . 3 . 1 . . 11 . 2 1 6 . To Critical Strikes . | . . . . . . . . . . . . . . . . . . . . Average Backups 23 | 4 8 9 11 9 19 33 31 25 26 31 32 35 37 31 18 17 23 28 20 Power 1 | . . 1 1 1 1 1 1 1 2 2 2 2 2 1 . 1 3 4 1 Propulsion 1 | 1 . 1 1 1 1 1 . . 2 6 6 6 6 5 1 1 1 1 . Utility 7 | . 2 3 3 3 4 8 10 10 11 12 12 13 15 10 9 9 8 8 7 Weapon 11 | 1 3 4 5 4 13 22 18 13 11 11 12 14 13 12 6 4 8 12 8 Tool/Special . | . . . . . . . . . . . . . . . . . . . . Unused Backups 67 | . . . . . 6 8 19 . 11 . . 1 1 1 4 . 1 4 11 Power 8 | . . . . . 1 . . . 4 . . . . . . . . 2 1 Propulsion 3 | . . . . . 1 . . . . . . . . . . . . . 2 Utility 26 | . . . . . 1 3 11 . 3 . . . . 1 1 . 1 . 5 Weapon 29 | . . . . . 3 5 8 . 4 . . 1 1 . 3 . . 2 2 Tool/Special 1 | . . . . . . . . . . . . . . . . . . . 1 Average Slot Usage (%) 73 | . 99 95 57 99 79 80 72 59 67 80 78 61 60 69 53 59 63 70 72 Engine 2 | . 4 . . . 1 . . . 1 6 6 6 6 4 5 5 5 2 . Core 6 | . 9 14 14 14 7 9 9 9 4 . . . . . . . . . 5 Treads 15 | . 22 28 28 28 26 27 27 27 11 . . . . . . . . . . Leg 1 | . 5 . . . . . . . 6 . . . . . . . . . . Hover 7 | . . . . . . . . . 5 26 26 26 26 22 16 17 17 18 21 Device 3 | . . . . 13 . . . . 2 13 11 7 6 21 5 5 4 4 9 Storage 9 | . 14 14 14 14 8 9 9 9 9 6 6 6 6 5 5 5 5 5 9 Processor 3 | . 13 9 . . . . . . 5 . . . . . 5 5 6 9 5 Hackware 5 | . . . . . 8 9 9 9 2 6 6 6 6 5 5 5 5 5 5 Energy Gun 3 | . . . . . 7 12 . . 2 12 13 . . . . 1 . 4 8 Energy Cannon 4 | . 12 28 . 27 12 3 . . . . . . . . . . . . . Ballistic Gun 4 | . 14 . . . 6 9 18 . 3 1 . . . 1 . . . . 1 Slashing Weapon 1 | . . . . . . . . . 3 5 6 6 6 4 5 5 4 4 . Peak Build Rating 128 | 7 10 10 11 13 62 67 68 60 97 98 98 100 89 107 91 98 119 124 128 Average Rating 65 | 5 8 9 9 12 54 63 62 56 76 97 97 90 88 98 87 91 102 110 115 On Entrance 62 | . 7 10 9 10 13 62 67 53 60 97 98 94 89 89 82 91 90 115 107 Avg Prop Armor Cover (%) 6 | . . . . . . . . . 14 . . . . . . . . 2 2 Naked Turns . | . . . . . . . . . . . . . . . . . . . . Heaviest Build 65 | 13 31 31 30 32 29 30 21 20 34 32 32 42 22 37 26 32 65 60 50 Greatest Support 74 | 20 40 40 40 40 62 64 64 64 74 47 47 47 47 49 49 49 49 61 62 Greatest Overweight (x) 1 | 1 1 . . . . . . . 1 . . . . . . . 1 1 1 Average Overweight (x) . | . . . . . . . . . . . . . . . . . . . . Largest Inventory Capacity 40 | 8 15 15 15 15 40 40 40 40 40 40 40 40 40 40 40 40 40 40 40 Average Capacity 34 | 7 13 15 15 15 39 40 40 40 40 40 40 40 40 40 40 40 40 40 37 Most Carried 40 | 5 9 9 15 13 33 38 39 28 40 34 36 40 40 40 26 20 38 38 29 Average Carried 24 | 4 8 9 13 11 19 33 31 25 27 34 35 38 39 34 20 19 26 32 23 Final Capacity 40 | 8 15 15 15 15 40 40 40 40 40 40 40 40 40 40 40 40 40 40 40 Final Carried 40 | 5 9 9 14 11 33 38 23 28 35 34 36 40 40 25 20 17 38 25 12 Class Distribution -------------------- 49% | Hauler-Mutant 27% | Hauler-Skirmisher 20% | Mutant Dominant Class ---------------- Mutant | -10/Materials Mutant | -10/Mines Mutant | -10/Exiles Mutant | -9/Mines Hauler-Skirmisher | -8/Materials Hauler-Skirmisher | -8/Storage Hauler-Skirmisher | -8/Recycling Hauler-Mutant | -8/Scraptown Hauler-Mutant | -6/Factory Hauler-Mutant | -6/Lower Caves Hauler-Mutant | -6/Lower Caves Hauler-Mutant | -6/Zion Hauler-Mutant | -5/Proximity Caves Hauler-Mutant | -5/Factory Hauler-Mutant | -5/Upper Caves Hauler-Mutant | -5/Upper Caves Hauler-Mutant | -5/Warlord Hauler-Mutant | -4/Proximity Caves Hauler-Skirmisher | -4/Factory Resources | -11 -10 -10 -10 -9 -8 -8 -8 -8 -6 -6 -6 -6 -5 -5 -5 -5 -5 -4 -4 ----------- Run | Yrd Mat Min Exi Min Mat Sto Rec Scr Fac Low Low Zio Pro Fac Upp Upp War Pro Fac Matter Collected 4778 | 366 457 8 . 111 373 500 109 16 679 299 80 . . 137 220 93 496 760 74 Remotely . | . . . . . . . . . . . . . . . . . . . . Salvage Created 5131 | 205 460 33 . 85 940 851 190 . 944 110 75 . . 283 . 113 368 296 178 Parts 314 | 15 40 . . 3 72 52 9 . 56 6 4 . . 12 . 8 12 12 13 Haulers Intercepted 11 | . 1 . . . 4 5 . . 1 . . . . . . . . . . Recyclers Shooed 1 | . . . . . . . 1 . . . . . . . . . . . . Parts Field Recycled . | . . . . . . . . . . . . . . . . . . . . Retrieved Matter . | . . . . . . . . . . . . . . . . . . . . Parts Self-Destructed 33 | . . . . . . . . . . 2 20 . . . . 5 . 6 . Prevented 6 | . . . . . . . . . . 2 2 . . . . 2 . . . Parts Restored . | . . . . . . . . . . . . . . . . . . . . Kills | -11 -10 -10 -10 -9 -8 -8 -8 -8 -6 -6 -6 -6 -5 -5 -5 -5 -5 -4 -4 ------- Run | Yrd Mat Min Exi Min Mat Sto Rec Scr Fac Low Low Zio Pro Fac Upp Upp War Pro Fac Combat Hostiles Destroyed 106 | . 11 2 . 3 18 10 2 . 19 1 1 . . 7 . 5 8 17 2 Melee 11 | . . . . . 1 . . . 8 . . . . . . . 1 1 . Guns 45 | . 7 . . . 9 6 2 . 9 1 1 . . 6 . 2 . 2 . Cannons 16 | . . 2 . . 7 3 . . . . . . . . . . 2 2 . AOE 34 | . 4 . . 3 1 1 . . 2 . . . . 1 . 3 5 12 2 Classes Destroyed 18 | 2 5 1 . . 4 . . . 1 1 1 . . . . . 3 . . Worker 5 | . . . . . 3 1 . . . . . . . . . . . . 1 Builder 5 | . . . . . 4 . . . . . . . . . . . . . 1 Tunneler 5 | 5 . . . . . . . . . . . . . . . . . . . Hauler 11 | . 1 . . . 4 5 . . 1 . . . . . . . . . . Recycler 4 | 1 . . . . 1 . 1 . . . . . . . . . . . 1 Operator 5 | . 2 . . . 1 1 . . 1 . . . . . . . . . . Watcher 6 | . 3 . . . 2 1 . . . . . . . . . . . . . Swarmer 35 | . 3 . . . 12 . . . 6 . . . . 4 . 5 1 4 . Saboteur 1 | . . . . . . . . . . . . . . . . . 1 . . Grunt 23 | . 8 . . 3 . 4 . . 4 . . . . . . . 1 3 . Brawler 4 | . . . . . . . . . . . 1 . . . . . 2 1 . Protector 1 | . . . . . . . . . . . . . . . . . 1 . . Sentry 16 | . . . . . 5 6 2 . 3 . . . . . . . . . . Demolisher 4 | . . . . . . . . . . . . . . . . . 1 3 . Hunter 5 | . . . . . 1 . . . . . . . . . . . . 4 . Programmer 14 | . . . . . . . . . 6 . . . . 3 . . 1 2 2 Decomposer 1 | . . . . . . . . . . 1 . . . . . . . . . Samaritan 1 | . . . . . . . . . . 1 . . . . . . . . . Assembled 2 | . . 2 . . . . . . . . . . . . . . . . . Thug 1 | . . . . . . . . . . 1 . . . . . . . . . Savage 1 | . . . . . . . . . . . . . . . . . 1 . . Best Kill Streak 5 | 4 3 1 . 3 5 2 2 . 4 1 1 . . 4 . 3 4 4 4 Combat Bots Only 4 | . 3 1 . 3 4 1 1 . 4 1 1 . . 4 . 3 4 4 2 Max Kills in Single Turn 4 | 1 2 1 . 2 4 2 1 . 2 1 1 . . 1 . 3 2 3 4 Gunslinging 1 | . 1 . . . . . . . 1 . . . . . . . . . . Exploded 3 | . 2 . . 2 1 1 . . 1 . . . . 1 . 3 2 3 2 Melee 1 | . . . . . 1 . . . 1 . . . . . . . 1 1 . Uniques/NPCs Destroyed . | . . . . . . . . . . . . . . . . . . . . Combat | -11 -10 -10 -10 -9 -8 -8 -8 -8 -6 -6 -6 -6 -5 -5 -5 -5 -5 -4 -4 -------- Run | Yrd Mat Min Exi Min Mat Sto Rec Scr Fac Low Low Zio Pro Fac Upp Upp War Pro Fac Hostile Shots Fired 691 | . 80 3 . 3 81 57 2 . 166 12 2 . . 104 6 36 11 110 18 Missed 210 | . 14 1 . 1 17 9 . . 56 6 1 . . 30 5 8 6 50 6 Hits 481 | . 66 2 . 2 64 48 2 . 110 6 1 . . 74 1 28 5 60 12 Melee 3 | . . 2 . . . . . . . . . . . . . . 1 . . Projectile 478 | . 66 . . 2 64 48 2 . 110 6 1 . . 74 1 28 4 60 12 AOE 24 | . . . . . . 3 . . . . . . . 1 . . 1 19 . Critical Strikes 13 | . 2 . . . 1 . . . 4 . 1 . . 2 1 . . 2 . Part Disruptions 5 | . 3 . . . . . . . 1 . . . . 1 . . . . . Damage Taken 7888 | . 873 36 . 38 659 789 28 . 1755 77 53 . . 1398 25 426 141 1438 152 Core 1205 | . 244 4 . . 49 163 . . 218 8 . . . 225 . 90 3 182 19 Absorbed by Shields 373 | . . . . . . . . . . . . . . . . . . 231 142 Redirected to Shielding 87 | . . . . . . . . . . . . . . . . 33 1 53 . Regen/Repaired (Parts) 231 | . . . . . . 111 . . . . . . . 28 . . 92 . . Core Remaining (%) 56 | 100 . . . . . . . 61 . . . . 73 . . . . 50 . Volleys Fired 357 | 16 56 5 . 2 50 47 3 . 44 9 3 . . 33 . 9 28 34 18 Largest 3 | 2 2 2 . 1 3 3 3 . 3 3 2 . . 3 . 2 2 2 3 Hottest 185 | 40 120 120 . 30 185 165 75 . 163 160 110 . . 143 . 110 97 120 164 Shots Fired 713 | 32 110 10 . 4 132 105 9 . 106 19 6 . . 56 . 14 30 54 26 Gun 514 | 32 99 . . . 76 88 9 . 88 19 6 . . 56 . 13 . 18 10 Cannon 146 | . 9 10 . 2 56 11 . . 17 . . . . . . . 20 5 16 Launcher 49 | . 2 . . 2 . 2 . . 1 . . . . . . 1 10 31 . Special 4 | . . . . . . 4 . . . . . . . . . . . . . Kinetic 380 | 32 94 . . . 27 46 9 . 85 6 . . . 36 . . 20 5 20 Thermal 161 | . 9 10 . 2 94 24 . . 2 9 . . . . . . . 5 6 Explosive 46 | . 2 . . 2 . . . . . . . . . . . 1 10 31 . Electromagnetic 118 | . 5 . . . 11 35 . . 19 4 6 . . 20 . 13 . 5 . Entropic 8 | . . . . . . . . . . . . . . . . . . 8 . Robot Hit Streak 17 | 6 17 4 . 6 10 9 6 . 7 9 3 . . 14 . 2 5 13 5 Robot Miss Streak 7 | 2 4 2 . . 5 2 . . 4 3 1 . . 2 . 2 7 2 2 Penetration Max 1 | . . . . . . . . . . . . . . 1 . . . . . Secondary Targets 8 | . 1 . . . . 1 . . 2 . . . . 3 . 1 . . . Max Gunslinging Chain 1 | . 1 . . . . 1 . . 1 . . . . 1 . 1 . . . Shots Hit Robots 426 | 19 80 5 . 2 63 61 5 . 66 17 4 . . 42 . 6 11 36 9 Core Hits 244 | 7 27 4 . 5 36 22 7 . 31 14 1 . . 16 . 6 19 42 7 Critical Kills . | . . . . . . . . . . . . . . . . . . . . Critical Parts Destroyed . | . . . . . . . . . . . . . . . . . . . . Critical Strikes 15 | . . . . . 3 4 . . 5 . . . . 1 . . 1 1 . Burn 5 | . . . . . 3 2 . . . . . . . . . . . . . Blast 1 | . . . . . . . . . . . . . . . . . 1 . . Corrupt 3 | . . . . . . 2 . . . . . . . 1 . . . . . Sever 6 | . . . . . . . . . 5 . . . . . . . . 1 . Melee Attacks 88 | . . . . . . . . . 52 2 1 . . 26 1 3 . 3 . Thermal 1 | . . . . . . . . . . . . . . . . . . 1 . Impact . | . . . . . . . . . . . . . . . . . . . . Slashing 87 | . . . . . . . . . 52 2 1 . . 26 1 3 . 2 . Piercing . | . . . . . . . . . . . . . . . . . . . . Sneak Attacks 5 | . . . . . . . . . 3 1 . . . 1 . . . . . Combat Hostiles . | . . . . . . . . . . . . . . . . . . . . Follow-up Attacks . | . . . . . . . . . . . . . . . . . . . . Damage Inflicted 13563 | 234 1188 87 . 155 1786 1394 97 . 2220 402 68 . . 865 . 248 1721 2525 573 Guns 5481 | 234 955 . . . 736 966 89 . 782 326 68 . . 661 . 121 . 380 163 Cannons 1937 | . 106 87 . 17 626 179 . . 94 . . . . . . . 625 102 101 Explosions 4686 | . 117 . . 130 368 238 . . 238 . . . . 98 . 127 1096 1965 309 Melee 1325 | . . . . . . . . . 1065 76 . . . 106 . . . 78 . Ramming 134 | . 10 . . 8 56 11 8 . 41 . . . . . . . . . . Kinetic 4111 | 234 917 . . . 197 509 89 . 645 95 . . . 511 . . 625 102 187 Thermal 2674 | . 163 87 . 17 1417 326 . . 203 192 . . . 98 . . . 94 77 Explosive 3762 | . 60 . . 130 . . . . 75 . . . . . . 127 1096 1965 309 Electromagnetic 1346 | . 38 . . . 116 548 . . 191 39 68 . . 150 . 121 . 75 . Impact . | . . . . . . . . . . . . . . . . . . . . Slashing 1325 | . . . . . . . . . 1065 76 . . . 106 . . . 78 . Piercing . | . . . . . . . . . . . . . . . . . . . . Entropic 211 | . . . . . . . . . . . . . . . . . . 211 . Highest Corruption 11 | . . 5 5 5 2 2 3 . 6 6 6 6 . 11 11 11 11 5 . Average Corruption 3 | . . 5 5 5 2 2 2 . 3 6 6 6 . 5 11 11 1 2 . Corruption Purged . | . . . . . . . . . . . . . . . . . . . . Corruption Blocked . | . . . . . . . . . . . . . . . . . . . . Effects 192 | . . 2 29 12 4 22 22 . 23 12 12 1 . 13 12 10 2 16 . Message Errors 54 | . . . 8 2 1 8 3 . 9 2 3 . . 5 1 3 . 9 . Matter Fused 41 | . . 1 5 2 1 3 7 . 5 4 4 . . 1 4 1 1 2 . Heat Flow Errors 26 | . . 1 3 3 . 5 5 . 1 1 1 1 . 1 3 . . 1 . Energy Discharges 18 | . . . 5 2 . 1 2 . 2 . 2 . . 1 1 . 1 1 . Parts Fused 1 | . . . . . 1 . . . . . . . . . . . . . . Data Loss (minor) 33 | . . . 6 . . 3 4 . 4 2 2 . . 4 3 2 . 3 . Data Loss (major) 7 | . . . 2 1 . 1 . . . 1 . . . . . 2 . . . Misfires 4 | . . . . 2 . 1 . . 1 . . . . . . . . . . Alerts 3 | . . . . . . . 1 . . 2 . . . . . . . . . Weapon Failures 5 | . . . . . 1 . . . 1 . . . . 1 . 2 . . . Overload Shots . | . . . . . . . . . . . . . . . . . . . . Overflow Damage 279 | . . . . . 29 . . . 100 . . . . 34 . . 57 14 45 Projectiles 88 | . . . . . 15 . . . . . . . . . . . 57 . 16 Explosions 113 | . . . . . 14 . . . 56 . . . . . . . . 14 29 Melee 78 | . . . . . . . . . 44 . . . . 34 . . . . . Knockbacks 6 | . . . . . . . . . . . . . . . . . 5 . 1 Impact . | . . . . . . . . . . . . . . . . . . . . Kinetic 5 | . . . . . . . . . . . . . . . . . 4 . 1 Secondary 1 | . . . . . . . . . . . . . . . . . 1 . . Self-Inflicted Damage 528 | . 61 . . 10 39 . . . 256 . . . . 59 . . 48 . 55 Shots 12 | . 2 . . 1 1 . . . 5 . . . . 1 . . 1 . 1 Rammed 37 | . 2 2 . 4 10 4 3 . 12 . . . . . . . . . . Targets Rammed 42 | . 2 2 . 4 13 5 3 . 13 . . . . . . . . . . Kicked 1 | . . . . . . . . . 1 . . . . . . . . . . Crushed 4 | . . . . . 3 1 . . . . . . . . . . . . . Highest Temperature 439 | . 138 198 275 241 373 439 266 . 192 225 251 261 . 277 135 120 60 111 303 Average Temperature 92 | . 37 90 108 95 131 109 94 . 49 97 93 132 . 48 62 56 12 24 129 Received Heat Transfer 1179 | . 456 . . 15 72 342 9 . 126 9 . . . 12 27 . 9 102 . Effects 10 | . . . . . 8 2 . . . . . . . . . . . . . Shutdowns 2 | . . . . . 2 . . . . . . . . . . . . . . Energy Bleed 5 | . . . . . 4 1 . . . . . . . . . . . . . Short Circuit 2 | . . . . . 1 1 . . . . . . . . . . . . . Damage (minor) 1 | . . . . . 1 . . . . . . . . . . . . . . Siege Activations . | . . . . . . . . . . . . . . . . . . . . Martial Activations . | . . . . . . . . . . . . . . . . . . . . Shielding Activations . | . . . . . . . . . . . . . . . . . . . . Robots Disrupted 1 | . . . . . . . . . 1 . . . . . . . . . . Combat Hostiles 1 | . . . . . . . . . 1 . . . . . . . . . . Robots Corrupted . | . . . . . . . . . . . . . . . . . . . . Combat Hostiles . | . . . . . . . . . . . . . . . . . . . . Parts Fried 1 | . . . . . . . . . . . . . . . . 1 . . . Impact Corruptions . | . . . . . . . . . . . . . . . . . . . . Robots Melted . | . . . . . . . . . . . . . . . . . . . . Combat Hostiles . | . . . . . . . . . . . . . . . . . . . . Parts Melted 3 | . . . . . 3 . . . . . . . . . . . . . . Heat Transferred 4504 | . 272 185 . 37 2422 679 . . 225 425 . . . . . . . 148 111 Parts Sabotaged 2 | . . . . . . . . . . . . . . . . . 2 . . Parts Stolen . | . . . . . . . . . . . . . . . . . . . . Parts Stripped . | . . . . . . . . . . . . . . . . . . . . Power Chain Reactions 7 | . 1 . . . 2 1 . . 2 . . . . 1 . . . . . Alert | -11 -10 -10 -10 -9 -8 -8 -8 -8 -6 -6 -6 -6 -5 -5 -5 -5 -5 -4 -4 ------- Run | Yrd Mat Min Exi Min Mat Sto Rec Scr Fac Low Low Zio Pro Fac Upp Upp War Pro Fac Maximum Alert Level 2 | . . . . . 1 2 . . 1 . . . . . . . . . . Low Security (%) 88 | 100 100 100 . 100 98 52 100 . 75 . . . . 100 . . . . 100 Level 1 6 | . . . . . 1 1 . . 24 . . . . . . . . . . Level 2 5 | . . . . . . 46 . . . . . . . . . . . . . Level 3 . | . . . . . . . . . . . . . . . . . . . . Level 4 . | . . . . . . . . . . . . . . . . . . . . Level 5 . | . . . . . . . . . . . . . . . . . . . . High Security . | . . . . . . . . . . . . . . . . . . . . Max Security . | . . . . . . . . . . . . . . . . . . . . Peak Influence 559 | 10 104 . . 96 214 559 198 . 283 . . . . 108 . . . . 130 Initial 198 | . . . . . 25 57 198 . . . . . . . . . . . . Average 89 | 1 33 . . 18 97 297 31 . 119 . . . . 13 . . . . 6 Influence Increases 5080 | 30 446 . . 177 745 1197 62 . 828 . 125 . . 302 75 125 325 465 178 Destroy 0b10 Robot/C 2540 | . 220 . . 120 460 540 40 . 380 . 20 . . 140 . 100 140 340 40 Destroy 0b10 Robot/NC 225 | 30 30 . . . 85 45 5 . 10 . . . . . . . 5 . 15 Destroy Leader 546 | . 48 . . 20 116 142 . . 120 . . . . 30 . 10 . 50 10 Allied During Kill 330 | . . . . 11 28 291 . . . . . . . . . . . . . Successful Hack 195 | . 27 . . . 15 20 17 . 64 . . . . 35 . . . . 17 Disable Machine 345 | . 30 . . 15 15 135 . . 75 . . . . 45 . . . . 30 Destroy Structure 269 | . 16 . . 11 26 9 . . 89 . . . . 52 . . . . 66 Lose Combat Pursuer 630 | . 75 . . . . 15 . . 90 . 105 . . . 75 15 180 75 . Influence Decreases 4956 | 30 446 . . 112 672 825 572 . 572 255 81 45 . 272 105 50 225 640 54 Entered New Map 836 | . . . . . 40 81 312 . . 95 1 45 . . 12 . 75 175 . Time Decay 3510 | 30 426 . . 112 592 514 260 . 492 160 70 . . 152 93 30 140 385 54 Lost Part 350 | . 20 . . . . 10 . . 80 . 10 . . 120 . 20 10 80 . Lost Ally 260 | . . . . . 40 220 . . . . . . . . . . . . . Squads Dispatched 24 | . 2 . . . 1 5 . . 9 . . . . 4 . . . . 3 Investigation 5 | . 1 . . . 1 . . . 2 . . . . 1 . . . . . Extermination 9 | . . . . . . . . . 5 . . . . 2 . . . . 2 Reinforcement 5 | . 1 . . . . 1 . . 2 . . . . 1 . . . . . Assault 4 | . . . . . . 3 . . . . . . . . . . . . 1 Garrison 1 | . . . . . . 1 . . . . . . . . . . . . . Intercept . | . . . . . . . . . . . . . . . . . . . . Searches Triggered . | . . . . . . . . . . . . . . . . . . . . Construction Impeded . | . . . . . . . . . . . . . . . . . . . . Haulers Reinforced 1 | . . . . . . . . . 1 . . . . . . . . . . Active Scanning Responses . | . . . . . . . . . . . . . . . . . . . . Cargo Convoy Interrupts . | . . . . . . . . . . . . . . . . . . . . Stealth | -11 -10 -10 -10 -9 -8 -8 -8 -8 -6 -6 -6 -6 -5 -5 -5 -5 -5 -4 -4 --------- Run | Yrd Mat Min Exi Min Mat Sto Rec Scr Fac Low Low Zio Pro Fac Upp Upp War Pro Fac Distress Signals 35 | . . 1 . . 3 4 . . 2 . . . . . . . . 25 . Communications Jammed 9 | . . . . . . . . . 1 . . . . 8 . . . . . Distress Signals 8 | . . . . . . . . . . . . . . 8 . . . . . Times Spotted 263 | . 29 2 . 5 29 32 1 . 33 11 9 . . 13 5 5 57 26 6 Peak Tracking Total 11 | . 5 1 . 3 7 8 . . 5 8 7 . . 4 5 5 11 4 2 Tactical Retreats 29 | . 4 . . . . 1 . . 3 5 2 . . . 4 1 6 3 . Traps | -11 -10 -10 -10 -9 -8 -8 -8 -8 -6 -6 -6 -6 -5 -5 -5 -5 -5 -4 -4 ------- Run | Yrd Mat Min Exi Min Mat Sto Rec Scr Fac Low Low Zio Pro Fac Upp Upp War Pro Fac Traps Triggered 7 | . 2 . . . 4 . . . 1 . . . . . . . . . . Indirectly . | . . . . . . . . . . . . . . . . . . . . Trap Hack Attempts . | . . . . . . . . . . . . . . . . . . . . Triggered . | . . . . . . . . . . . . . . . . . . . . Disarmed . | . . . . . . . . . . . . . . . . . . . . Reprogrammed . | . . . . . . . . . . . . . . . . . . . . Reused . | . . . . . . . . . . . . . . . . . . . . Traps Extracted . | . . . . . . . . . . . . . . . . . . . . Installed 4 | . . . . 4 . . . . . . . . . . . . . . . Triggered . | . . . . . . . . . . . . . . . . . . . . Machines | -11 -10 -10 -10 -9 -8 -8 -8 -8 -6 -6 -6 -6 -5 -5 -5 -5 -5 -4 -4 ---------- Run | Yrd Mat Min Exi Min Mat Sto Rec Scr Fac Low Low Zio Pro Fac Upp Upp War Pro Fac Machines Disabled 24 | . 2 . . 1 1 9 . . 5 . . . . 3 . 1 . . 2 Max in Single Turn 2 | . 1 . . 1 1 1 . . 2 . . . . 1 . 1 . . 1 Garrison Access 2 | . . . . . . 1 . . 1 . . . . . . . . . . Machines Repaired . | . . . . . . . . . . . . . . . . . . . . Machines Dismantled . | . . . . . . . . . . . . . . . . . . . . Machines Sabotaged . | . . . . . . . . . . . . . . . . . . . . Overloaded Fab Kills . | . . . . . . . . . . . . . . . . . . . . Hacking | -11 -10 -10 -10 -9 -8 -8 -8 -8 -6 -6 -6 -6 -5 -5 -5 -5 -5 -4 -4 --------- Run | Yrd Mat Min Exi Min Mat Sto Rec Scr Fac Low Low Zio Pro Fac Upp Upp War Pro Fac Machines Accessed 79 | . 9 . 2 . 11 10 14 . 19 . . . . 9 . . 2 . 3 Terminals 44 | . 7 . . . 7 7 6 . 10 . . . . 4 . . . . 3 Fabricators 4 | . . . . . . . . . 2 . . . . 2 . . . . . Repair Stations 6 | . 1 . . . 1 1 . . 2 . . . . 1 . . . . . Recycling Units 12 | . 1 . . . 1 1 8 . . . . . . 1 . . . . . Scanalyzers 6 | . . . . . 2 . . . 3 . . . . 1 . . . . . Garrison Access 3 | . . . . . . 1 . . 2 . . . . . . . . . . Total Hacks 178 | . 22 . 2 . 26 22 29 . 42 . . . . 20 . . 7 . 8 Successful 101 | . 10 . 2 . 17 15 16 . 21 . . . . 9 . . 7 . 4 Failed 75 | . 12 . . . 8 7 13 . 20 . . . . 11 . . . . 4 Catastrophic 10 | . 3 . . . . 2 . . 1 . . . . 2 . . . . 2 Database Lockouts 2 | . . . . . 1 . . . 1 . . . . . . . . . . Manual 69 | . 15 . 1 . 13 7 11 . 10 . . . . 6 . . . . 6 Terminals 101 | . 17 . . . 17 15 16 . 19 . . . . 9 . . . . 8 Fabricators 7 | . . . . . . . . . 4 . . . . 3 . . . . . Repair Stations 12 | . 1 . . . 2 2 . . 3 . . . . 4 . . . . . Recycling Units 24 | . 4 . . . 2 3 13 . . . . . . 2 . . . . . Scanalyzers 18 | . . . . . 5 . . . 11 . . . . 2 . . . . . Garrison Access 7 | . . . . . . 2 . . 5 . . . . . . . . . . Terminal Hacks 31 | . 2 . 2 . 6 6 1 . 3 . . . . 3 . . 7 . 1 Record 5 | . . . 1 . . 2 . . . . . . . 2 . . . . . Part Schematic 7 | . . . . . . 3 1 . 1 . . . . 1 . . . . 1 Robot Analysis 4 | . 2 . . . 2 . . . . . . . . . . . . . . Prototype ID Bank 7 | . . . . . 1 . . . . . . . . . . . 6 . . Open Door 3 | . . . . . . 1 . . 1 . . . . . . . 1 . . Open DSF 1 | . . . . . . . . . 1 . . . . . . . . . . Branch Access Points 1 | . . . . . 1 . . . . . . . . . . . . . . Alert Level 1 | . . . . . 1 . . . . . . . . . . . . . . Registered Components 1 | . . . . . 1 . . . . . . . . . . . . . . Proto ID Catalog 1 | . . . 1 . . . . . . . . . . . . . . . . Fabricator Hacks 5 | . . . . . . . . . 2 . . . . 3 . . . . . Network Status 2 | . . . . . . . . . 1 . . . . 1 . . . . . Load Schematic 2 | . . . . . . . . . 1 . . . . 1 . . . . . Build 1 | . . . . . . . . . . . . . . 1 . . . . . Repair Station Hacks 5 | . . . . . 1 2 . . . . . . . 2 . . . . . Scan Component 3 | . . . . . 1 1 . . . . . . . 1 . . . . . Repair 2 | . . . . . . 1 . . . . . . . 1 . . . . . Recycling Unit Hacks 11 | . 1 . . . . 1 9 . . . . . . . . . . . . Retrieve Components 11 | . 1 . . . . 1 9 . . . . . . . . . . . . Scanalyzer 13 | . . . . . 4 . . . 9 . . . . . . . . . . Insert Component 5 | . . . . . 1 . . . 4 . . . . . . . . . . Analyze 4 | . . . . . 1 . . . 3 . . . . . . . . . . Retrieve Study 4 | . . . . . 2 . . . 2 . . . . . . . . . . Garrison Access Hacks 2 | . . . . . . 1 . . 1 . . . . . . . . . . Seal Access 2 | . . . . . . 1 . . 1 . . . . . . . . . . Unauthorized Hacks 34 | . 7 . . . 6 5 6 . 6 . . . . 1 . . . . 3 Terminals 34 | . 7 . . . 6 5 6 . 6 . . . . 1 . . . . 3 Assimilate 3 | . 1 . . . . . . . . . . . . 1 . . . . 1 Botnet 1 | . . . . . 1 . . . . . . . . . . . . . . Operators 1 | . 1 . . . . . . . . . . . . . . . . . . Skim 29 | . 5 . . . 5 5 6 . 6 . . . . . . . . . 2 Fabricators . | . . . . . . . . . . . . . . . . . . . . Repair Stations . | . . . . . . . . . . . . . . . . . . . . Recycling Units . | . . . . . . . . . . . . . . . . . . . . Scanalyzers . | . . . . . . . . . . . . . . . . . . . . Garrison Access . | . . . . . . . . . . . . . . . . . . . . Data Cores Recovered 2 | . 1 . . . 1 . . . . . . . . . . . . . . Used . | . . . . . . . . . . . . . . . . . . . . Hacking Detections 52 | . 6 . . . 7 8 6 . 15 . . . . 7 . . . . 3 Full Trace Events 6 | . 1 . . . 1 . 2 . 1 . . . . 1 . . . . . Feedback Events 1 | . . . . . . . 1 . . . . . . . . . . . . Corruption 1 | . . . . . . . 1 . . . . . . . . . . . . Feedback Blocked . | . . . . . . . . . . . . . . . . . . . . Robot Schematics Acquired 3 | . . . . . . . . . . . . 3 . . . . . . . Robots Built . | . . . . . . . . . . . . . . . . . . . . Authchips . | . . . . . . . . . . . . . . . . . . . . Time . | . . . . . . . . . . . . . . . . . . . . Total Robot Build Rating . | . . . . . . . . . . . . . . . . . . . . Part Schematics Acquired 26 | . . . . . 1 3 1 . 4 . . 15 . 1 . . . . 1 Parts Built 1 | . . . . . . . . . . . . . . 1 . . . . . Authchips 1 | . . . . . . . . . . . . . . 1 . . . . . Time 117 | . . . . . . . . . . . . . . 117 . . . . . Total Part Build Rating 7 | . . . . . . . . . . . . . . 7 . . . . . Part Studies Acquired 4 | . . . . . 2 . . . 2 . . . . . . . . . . Parts Repaired 2 | . . . . . . 1 . . . . . . . 1 . . . . . Time 88 | . . . . . . 38 . . . . . . . 50 . . . . . Parts Recycled . | . . . . . . . . . . . . . . . . . . . . Recycled Matter . | . . . . . . . . . . . . . . . . . . . . Retrieved Matter . | . . . . . . . . . . . . . . . . . . . . Retrieved Components 33 | . 9 . . . . 10 14 . . . . . . . . . . . . Parts Scanalyzed 5 | . . . . . 1 . . . 4 . . . . . . . . . . Part Schematics Acquired 4 | . . . . . 1 . . . 3 . . . . . . . . . . Parts Damaged . | . . . . . . . . . . . . . . . . . . . . Bothacking | -11 -10 -10 -10 -9 -8 -8 -8 -8 -6 -6 -6 -6 -5 -5 -5 -5 -5 -4 -4 ------------ Run | Yrd Mat Min Exi Min Mat Sto Rec Scr Fac Low Low Zio Pro Fac Upp Upp War Pro Fac Used RIF Installer . | . . . . . . . . . . . . . . . . . . . . Robots Hacked . | . . . . . . . . . . . . . . . . . . . . Non-combat . | . . . . . . . . . . . . . . . . . . . . Combat . | . . . . . . . . . . . . . . . . . . . . Robot Hacks Applied . | . . . . . . . . . . . . . . . . . . . . Relay Couplers Released 2 | . . . . . . 2 . . . . . . . . . . . . . Machine Destruction 2 | . . . . . . 2 . . . . . . . . . . . . . Fabnet Peak Effective % . | . . . . . . . . . . . . . . . . . . . . Robots Rewired . | . . . . . . . . . . . . . . . . . . . . Allies Hacked . | . . . . . . . . . . . . . . . . . . . . Hacks Repelled . | . . . . . . . . . . . . . . . . . . . . Allies | -11 -10 -10 -10 -9 -8 -8 -8 -8 -6 -6 -6 -6 -5 -5 -5 -5 -5 -4 -4 -------- Run | Yrd Mat Min Exi Min Mat Sto Rec Scr Fac Low Low Zio Pro Fac Upp Upp War Pro Fac Total Allies 17 | . 1 . . 3 . 12 . . . . . . . . . . . . 1 Largest Group 12 | . 1 . . 3 3 12 . . . . . . . . . . . . 1 Highest-Rated Group 235 | . 10 . . 40 39 235 . . . . . . . . . . . . 10 Highest-Rated Ally 31 | . 10 . . 16 16 31 . . . . . . . . . . . . 10 Total Orders 6 | . 4 . . 1 . 1 . . . . . . . . . . . . . STAY 2 | . 2 . . . . . . . . . . . . . . . . . . FOLLOW 2 | . 2 . . . . . . . . . . . . . . . . . . GUARD 2 | . . . . 1 . 1 . . . . . . . . . . . . . Ally Attacks 175 | . . . . 11 28 136 . . . . . . . . . . . . . Total Damage 1971 | . . . . 121 275 1575 . . . . . . . . . . . . . Kills 29 | . . . . 3 7 19 . . . . . . . . . . . . . Allies Corrupted . | . . . . . . . . . . . . . . . . . . . . Allies Melted . | . . . . . . . . . . . . . . . . . . . . Intel | -11 -10 -10 -10 -9 -8 -8 -8 -8 -6 -6 -6 -6 -5 -5 -5 -5 -5 -4 -4 ------- Run | Yrd Mat Min Exi Min Mat Sto Rec Scr Fac Low Low Zio Pro Fac Upp Upp War Pro Fac Active Infowar (turns) 7382 | 51 65 . . 634 22 . . . 2842 325 333 609 149 834 341 248 929 . . IFF 1408 | . . . . . . . . . . 317 333 609 149 . . . . . . Traps 2351 | . . . . . . . . . . . . . . 833 341 248 929 . . Seismic 772 | 51 65 . . 634 22 . . . . . . . . . . . . . . Machine Analysis 2250 | . . . . . . . . . 2250 . . . . . . . . . . Jamming 1516 | . . . . . . . . . 794 8 . . . 714 . . . . . Robot Analysis Total 4 | . 2 . . . 2 . . . . . . . . . . . . . . Derelict Logs Recovered 10 | . . 1 . 1 . . . . . . 2 2 2 . . 1 . 1 . Drone Launches . | . . . . . . . . . . . . . . . . . . . . Drone Recoveries . | . . . . . . . . . . . . . . . . . . . . Exploration | -11 -10 -10 -10 -9 -8 -8 -8 -8 -6 -6 -6 -6 -5 -5 -5 -5 -5 -4 -4 ------------- Run | Yrd Mat Min Exi Min Mat Sto Rec Scr Fac Low Low Zio Pro Fac Upp Upp War Pro Fac Turns Passed 18101 | 169 1404 403 1147 642 1873 1418 1414 1045 2895 325 333 609 149 845 341 248 996 994 851 Spaces Moved 14489 | 91 573 241 515 390 1009 768 793 678 1829 628 585 1161 328 989 516 440 1031 1206 718 Core 5 | 5 . . . . . . . . . . . . . . . . . . . Treads 5555 | . 447 241 515 390 1009 768 793 678 714 . . . . . . . . . . Legs 594 | 86 126 . . . . . . . 382 . . . . . . . . . . Wheels . | . . . . . . . . . . . . . . . . . . . . Hover 8335 | . . . . . . . . . 733 628 585 1161 328 989 516 440 1031 1206 718 Flight . | . . . . . . . . . . . . . . . . . . . . Fastest Speed 45 | 50 120 160 160 160 155 150 150 153 45 45 45 45 45 45 48 48 48 48 54 Average Speed 94 | 116 152 160 160 160 159 151 152 153 103 45 45 45 45 45 48 48 48 60 78 Slowest Speed 240 | 120 240 160 160 160 160 155 153 153 190 45 45 45 45 56 51 48 98 111 129 Overloaded Moves 35 | . . . . . . . . . . . . . . . . . . 35 . Propulsion Burnouts 1 | . . . . . . . . . . . . . . . . . . 1 . Robots Hopped . | . . . . . . . . . . . . . . . . . . . . Potential Cave-ins 5 | . . . . . . . . . 2 . . . . . . . 3 . . Cave-ins Triggered . | . . . . . . . . . . . . . . . . . . . . Exploration Rate (%) 63 | 3 93 51 88 61 74 96 97 56 40 84 66 84 58 20 62 72 90 76 8 Regions Visited 19 Branch Regions 14 Pre-discovered Areas 13 | . 2 1 1 . 2 . . . 4 . . 3 . . . . . . . Known Exits Taken 8 | . . . . . 1 1 1 . 1 1 . . 1 1 . . . 1 . Unknown Exits Taken 11 | 1 1 1 1 1 . . . 1 . . 1 1 . . 1 1 1 . . Scrap Searched 17 | . . . . . . . . 3 . 2 2 2 1 . 2 1 . 4 . Spaces Dug 75 | . . . . . 3 . . . 40 1 . . . 18 . 1 . . 12 Terrain Destroyed 548 | . 13 . . 13 26 7 . . 110 1 . . . 25 . 15 41 240 57 Melee 48 | . . . . . . . . . 30 1 . . . 16 . 1 . . . Projectile 59 | . . . . . 15 2 . . 10 . . . . 2 . . 7 10 13 AOE 441 | . 13 . . 13 11 5 . . 70 . . . . 7 . 14 34 230 44 Terrain Rammed . | . . . . . . . . . . . . . . . . . . . . Walls Destroyed . | . . . . . . . . . . . . . . . . . . . . Machines Disabled . | . . . . . . . . . . . . . . . . . . . . Actions | -11 -10 -10 -10 -9 -8 -8 -8 -8 -6 -6 -6 -6 -5 -5 -5 -5 -5 -4 -4 --------- Run | Yrd Mat Min Exi Min Mat Sto Rec Scr Fac Low Low Zio Pro Fac Upp Upp War Pro Fac Total 18216 | 118 986 247 840 404 1177 934 1011 686 2674 648 646 1248 329 1292 635 456 1496 1408 981 Wait 2508 | . 329 . 320 . 13 56 164 . 590 4 54 78 . 214 . . 389 86 211 Move 14470 | 90 572 240 514 389 1008 767 792 677 1828 627 584 1160 327 988 515 439 1030 1205 718 Hop . | . . . . . . . . . . . . . . . . . . . . Pick Up 263 | 5 7 . 1 . 42 18 11 6 41 . 2 3 1 1 56 1 27 22 19 Fast Attach 50 | 7 3 . 1 . 7 2 . . 13 . . 2 . 4 1 . 2 6 2 Attach 88 | . 2 . . 4 7 4 . 1 23 . . . . 13 4 3 9 16 2 Detach 62 | . . . 3 1 8 5 3 . 19 . . 3 . 4 3 1 6 5 1 Swap 110 | . 12 . . . 15 24 2 . 22 6 1 . . 6 . . 3 14 5 Drop 162 | . 3 . 1 . 14 5 28 . 26 . . 2 1 3 55 . 2 17 5 Fire 357 | 16 56 5 . 2 50 47 3 . 44 9 3 . . 33 . 9 28 34 18 Melee 88 | . . . . . . . . . 52 2 1 . . 26 1 3 . 3 . Ram . | . . . . . . . . . . . . . . . . . . . . Kick 1 | . . . . . . . . . 1 . . . . . . . . . . Crush 41 | . 2 2 . 4 13 5 3 . 12 . . . . . . . . . . Escape Stasis . | . . . . . . . . . . . . . . . . . . . . Rewire 11 | . . . . . . 1 5 2 3 . . . . . . . . . . Trap 4 | . . . . 4 . . . . . . . . . . . . . . . Miscellaneous 1 | . . . . . . . . . . . 1 . . . . . . . . Route ------- -11/Scrapyard -10/Materials (discovered 5 exits: *Mat x3 / [*Min] / [*Sub]) -10/Mines (discovered 2 exits: *Mat / *Exi) -10/Exiles (discovered 2 exits: [*Min x2]) -9/Mines -8/Materials (discovered 4 exits: *Fac x3 / *Sto) -8/Storage (discovered 2 exits: *Fac / *Rec) -8/Recycling (discovered 2 exits: *Fac / *Scr) -8/Scraptown -6/Factory (discovered 6 exits: Fac x2 / *Low x2 / *Ext x2) -6/Lower Caves -6/Lower Caves (discovered 2 exits: Fac / [*Zio]) -6/Zion -5/Proximity Caves -5/Factory (discovered 3 exits: Fac / *Upp x2) -5/Upper Caves -5/Upper Caves -5/Warlord -4/Proximity Caves -4/Factory History --------- Turn | Location | Event 7 | -11/Scrapyard | Discovered new exit (range 15) 170 | -11/Scrapyard | Entered Materials 306 | -10/Materials | Core integrity fell below 50% 330 | -10/Materials | Build established: Mutant 516 | -10/Materials | Discovered new exit (range 9) 646 | -10/Materials | Discovered new exit (range 11) 752 | -10/Materials | Discovered new exit (range 16) 982 | -10/Materials | Identified exit to Materials 1032 | -10/Materials | Core integrity fell below 20% 1134 | -10/Materials | Learned location of 1 exit from Materials 1245 | -10/Materials | Learned Storage trap positions 1287 | -10/Materials | Learned 2 Storage zone layouts 1321 | -10/Materials | Learned location of Subcaves (-10) 1363 | -10/Materials | Learned 4 Subcaves zone layouts 1416 | -10/Materials | Loaded intel: 9 trap records 1574 | -10/Materials | Entered Mines 1575 | -10/Mines | Assembled infested the area 1580 | -10/Mines | Assisted by a Guerilla fighting off Assembled 1698 | -10/Mines | Learned location of Storage (-8) 1758 | -10/Mines | Discovered exit to Materials (range 5) 1969 | -10/Mines | Deemed a non-threat by the Exiles lab entrance 1970 | -10/Mines | Discovered new exit (range 5) 1977 | -10/Mines | Entered Exiles 2007 | -10/Exiles | Discovered new exit (range 15) 2026 | -10/Exiles | Met 8R-AWN 2049 | -10/Exiles | Met EX-HEX 2106 | -10/Exiles | Met EX-BIN 2129 | -10/Exiles | Aligned with FarCom system 2130 | -10/Exiles | Given EX-Vault access code 2169 | -10/Exiles | Opened EX-Vault 2178 | -10/Exiles | Found Lightpack 2.0 2211 | -10/Exiles | Warned to stay clear of 0b10 Research branches 2711 | -10/Exiles | Met EX-DEC 2741 | -10/Exiles | Learned location of Zion (-6) 2816 | -10/Exiles | Visited The Gauntlet 3104 | -10/Exiles | Discovered new exit (range 10) 3124 | -10/Exiles | Left Exiles lab with Lightpack 2.0 3124 | -10/Exiles | Entered Mines 3223 | -9/Mines | Found a hidden stash of uninstalled traps 3540 | -9/Mines | Assisted by bots powering up and referring to "LRC-V3" 3577 | -9/Mines | Learned location of 1 exit from Materials 3737 | -9/Mines | Discovered new exit (range 8) 3766 | -9/Mines | Entered Materials 3766 | -8/Materials | Accompanied by 3 allies 3766 | -8/Materials | Evolved 4 slots: Propulsion x1, Utility x2, Weapon x1 3767 | -8/Materials | Identified exit to Factory 3767 | -8/Materials | Identified exit to Storage 3828 | -8/Materials | Central database locked down 4139 | -8/Materials | Build established: Hauler-Skirmisher 4729 | -8/Materials | Discovered exit to Factory (range 4) 5402 | -8/Materials | Learned Storage emergency access door positions 5471 | -8/Materials | Learned location of Extension (-6) 5476 | -8/Materials | Learned Factory stockpile data 5477 | -8/Materials | Learned Factory garrison access intel 5499 | -8/Materials | Learned Factory garrison access intel 5524 | -8/Materials | Learned location of 2 exits from Factory 5639 | -8/Materials | Entered Storage 5640 | -8/Storage | Identified exit to Recycling 5642 | -8/Storage | Loaded intel: 22 trap records 5937 | -8/Storage | Met a pair of Derelict thieves 6032 | -8/Storage | Assisted by bots powering up and referring to "LRC-V3" 6047 | -8/Storage | Used back door to open Recycling access 6155 | -8/Storage | Repaired Adv. Treads 6234 | -8/Storage | Learned 8 Factory zone layouts 6298 | -8/Storage | Learned 12 Factory zone layouts 6352 | -8/Storage | Learned 4 Recycling zone layouts 6389 | -8/Storage | Garrison activated, responded to threat 6426 | -8/Storage | Learned location of 2 exits from Factory 6439 | -8/Storage | First assault squad dispatched 6516 | -8/Storage | Learned location of 1 exit from Extension 6530 | -8/Storage | Lost 7 allies 6552 | -8/Storage | Discovered exit to Factory (range 15) 7057 | -8/Storage | Entered Recycling 7058 | -8/Recycling | Identified exit to Scraptown 7397 | -8/Recycling | Scanned before Scraplab entrance 7917 | -8/Recycling | Discovered new exit (range 6) 8236 | -8/Recycling | Entered Scraplab 8323 | -8/Recycling | Build established: Hauler-Mutant 8471 | -8/Recycling | Entered Scraptown 8471 | -8/Scraptown | System corruption cleaned by C-Scrubber 8669 | -8/Scraptown | Visited Spacefarers 8767 | -8/Scraptown | Heard Great Nut preacher, LISTEN AND RECITE! 8994 | -8/Scraptown | Visited CR-KLE's Repair Center 9066 | -8/Scraptown | Visited Supply Room 9139 | -8/Scraptown | Visited Scrapoid Research Area 9190 | -8/Scraptown | Visited Junk Repository 9233 | -8/Scraptown | Turned away by UFD registrar 9334 | -8/Scraptown | Discovered new exit (range 11) 9516 | -8/Scraptown | Entered Factory 9516 | -6/Factory | Evolved 4 slots: Propulsion x2, Utility x2 9517 | -6/Factory | Identified exit to Lower Caves 9518 | -6/Factory | Identified exit to Extension 9518 | -6/Factory | Identified exit to Factory 9521 | -6/Factory | Loaded intel: 4 garrison access locations 9694 | -6/Factory | Central database locked down 9728 | -6/Factory | Identified exit to DSF 10883 | -6/Factory | Discovered exit to Extension (range 9) 10984 | -6/Factory | Lost 3 parts (2n1w) 12273 | -6/Factory | Learned location of Proximity Caves (-6) 12296 | -6/Factory | Learned Extension emergency access door positions 12354 | -6/Factory | Learned 2 Proximity Caves zone layouts 12391 | -6/Factory | Learned Extension machine intel 12411 | -6/Factory | Entered Lower Caves 12412 | -6/Lower Caves | Identified exit to Lower Caves 12424 | -6/Lower Caves | Attacked by a faux Warlord 12611 | -6/Lower Caves | Encountered a Warlord checkpoint 12736 | -6/Lower Caves | Entered another Lower Caves area 12816 | -6/Lower Caves | Learned Factory trap positions 12885 | -6/Lower Caves | Learned Factory interactive machine intel 12930 | -6/Lower Caves | Activated DRS Beacon 13016 | -6/Lower Caves | Attracted the attention of an 0b10 outpost 13053 | -6/Lower Caves | Discovered new exit (range 12) 13069 | -6/Lower Caves | Entered Zion 13109 | -6/Zion | Acquired unknown access codes intercepted by a Zionite 13117 | -6/Zion | System corruption cleaned by Quarantine Array 13129 | -6/Zion | Learned location of Armory (-3) 13230 | -6/Zion | Learned location of Warlord (-5) 13254 | -6/Zion | Learned Factory emergency access door positions 13314 | -6/Zion | Found CR-A16's Pointy Stick 13335 | -6/Zion | Learned Factory emergency access door positions 13337 | -6/Zion | Found Prototype Device 13337 | -6/Zion | Identified Phasing AFG 13462 | -6/Zion | Given the Hacking Drone Bay 13462 | -6/Zion | Found Prototype Device 13462 | -6/Zion | Identified Hacking Drone Bay 13548 | -6/Zion | Rebuked by Imprinter 13619 | -6/Zion | Discovered new exit (range 15) 13678 | -6/Zion | Entered Proximity Caves 13785 | -5/Proximity Caves | Learned 8 Factory zone layouts 13827 | -5/Proximity Caves | Entered Factory 13827 | -5/Factory | Evolved 2 slots: Utility x2 13828 | -5/Factory | Identified exit to Upper Caves 13828 | -5/Factory | Identified exit to Factory 13829 | -5/Factory | Loaded intel: 95 trap records 13831 | -5/Factory | Loaded intel: 53 interactive machine locations 13832 | -5/Factory | Loaded intel: 4 garrison access locations 13955 | -5/Factory | Repaired Angular Momentum Engine 14125 | -5/Factory | Discovered exit to Upper Caves (range 16) 14278 | -5/Factory | Fabricated Micro-nuke Launcher (x1) 14630 | -5/Factory | System corruption reached 10% 14672 | -5/Factory | Entered Upper Caves 14695 | -5/Upper Caves | Lost 11 parts (1p4n2u4w) 14839 | -5/Upper Caves | Attracted the attention of an 0b10 checkpoint 15007 | -5/Upper Caves | Discovered new exit (range 14) 15013 | -5/Upper Caves | Entered another Upper Caves area 15097 | -5/Upper Caves | Learned Factory trap positions 15113 | -5/Upper Caves | Encountered a Warlord checkpoint 15242 | -5/Upper Caves | Found Alien Artifact 15255 | -5/Upper Caves | Discovered new exit (range 13) 15261 | -5/Upper Caves | Entered Warlord 15279 | -5/Warlord | System corruption cleaned by Quarantine Array 15348 | -5/Warlord | Met Warlord 15373 | -5/Warlord | Warlord's base attacked by MAIN.C 15453 | -5/Warlord | Found Prototype Energy Gun 15455 | -5/Warlord | Found Prototype Energy Gun 15457 | -5/Warlord | Found Prototype Energy Gun 15459 | -5/Warlord | Found Prototype Energy Gun 15494 | -5/Warlord | Found Signal Generator 15497 | -5/Warlord | Found Signal Generator 15500 | -5/Warlord | Identified Vortex Rail (x4) 15641 | -5/Warlord | Lost 6 allies 15723 | -5/Warlord | Warlord forces counterattacked 15798 | -5/Warlord | Lost 3 allies 15837 | -5/Warlord | Spotted Striker 15895 | -5/Warlord | Lost 11 allies 15907 | -5/Warlord | Spotted Striker 15945 | -5/Warlord | Spotted Striker 15945 | -5/Warlord | Spotted Striker 15985 | -5/Warlord | Found Prototype Ballistic Cannon 15991 | -5/Warlord | Identified Hvy. Autocannon 16007 | -5/Warlord | Lost 9 allies 16048 | -5/Warlord | Warlord base infiltrated, sounded retreat 16130 | -5/Warlord | Spotted Striker 16130 | -5/Warlord | Spotted Striker 16254 | -5/Warlord | Discovered new exit (range 8) 16257 | -5/Warlord | Entered Proximity Caves 16617 | -4/Proximity Caves | Learned Research emergency access door positions 17084 | -4/Proximity Caves | Lost 6 parts (2p1u3w) 17245 | -4/Proximity Caves | Discovered exit to Factory (range 10) 17251 | -4/Proximity Caves | Entered Factory 17251 | -4/Factory | Evolved 2 slots: Power x1, Propulsion x1 17252 | -4/Factory | Loaded intel: 99 trap records 17666 | -4/Factory | Build established: Hauler-Skirmisher 18102 | -4/Factory | Self-destructed Last Messages --------------- 18062_ Destroyed Antigrav System. 18062_ P-70 Sage knocked back. 18064_ Nuclear Reactor explodes. 18064_ Destroyed Imp. Heat Sink. 18064_ Destroyed Hpw. Shock Rifle. 18064_ P-70 Sage destroyed. 18064_ U-05 Engineer destroyed. 18064_ K-01 Serf destroyed. 18069_ Acquired 74 matter. 18078_ Connecting with Repair Station... 18086_ The unstable cave ceiling collapses. 18088_ Acquired Phasing AFG. 18090_ Acquired Imp. Heavy Treads. 18091_ The unstable cave ceiling collapses. 18092_ Acquired Imp. Armor Integrity Analyzer. 18093_ Acquired Hvy. Autocannon. 18095_ Acquired Hacking Drone Bay. 18097_ Acquired Angular Momentum Engine. 18098_ Acquired Vortex Rail. 18101_ Acquired Antimatter Reactor. Map ----- +----------------------------------------------------+ | #??????????????????????????????????????????????? | | ######?????????????????????????????????????????? | | # ? ???????????????????????????????????????? | | # ??????????????????????????????????????? | | # """ """ ?????????????????????????????????????? | | # """ """ ????????????????????????????????????? | | # """ """ ?????????????????? ???????????????? | | # ??????????????????# ???????????????? | | + """ """ ??????????????????# ???????????????? | | # """ """ #????????????????# ??????????????? | | # """ """ #????????????????# #??????????????? | | # #????????????????# #??????????????? | | ### #????????????????# #??????????????? | | ??# #????????????????# #??????????????? | | ??####################??????????# #?########?????? | | ############## #????????### ### ! #?????? | | ##########!! # #?????? | | "T =p%" # " "" #?????? | | "" == == "T + "R"" #?????? | | %| # """ #?????? | | ## ! # # !#?????? | | ##########+### # [! p ############?????? | | ### T ######### #??????????????? | | + + """ #???????# = [ #??????????????? | | ### """ #???????# ] # #??????????????? | | #?# """ #???????##] @ ## ##??????????????? | | #?# #????????# ##?????????????? | | #?# #????????# # #?????????????? | | #?# #????????# ###?????????????? | | #?# #????????# #???????????????? | | ##?###########????????# ###???????????????? | | ??????????????????????# ##?????????????????? | | ??????????????????????#########??????????????????? | | | | | | | | | | | | | | | | | | | | | | | | | | | | | | | | | | | +----------------------------------------------------+ Best States ------------- Heat Dissipation 65 Energy Generation 21 Energy Capacity 665 Matter Stores 300 Matter Capacity 300 Sight Range 16 Terrain Scan Density 10 Jamming Range 12 Power Amplification 20 Additional Mass Support 9 Corruption Containment 8 Armor Coverage 150 Resistance: EX 25 Core Shielding 30 Melee Speed Boost 20 Evasion (%) 66 Targeting Accuracy 14 Recoil Reduction 3 Offensive Hacking 20 Authchip Count 8 Item Schematics ----------------- Lightning Gun | -8/Materials | Scanalyzed Hyp. Gauss Rifle | -8/Storage | Hacked Adv. Signal Interpreter | -8/Storage | Hacked Lgt. Deuterium Engine | -8/Storage | Hacked Hacking Suite | -8/Recycling | Hacked Imp. EM Pulse Cannon | -6/Factory | Scanalyzed Enh. Autogun | -6/Factory | Scanalyzed Imp. Hacking Suite | -6/Factory | Hacked Gravmag Array | -6/Factory | Scanalyzed Imp. Remote Datajack | -6/Zion | Archive Imp. Actuator Array | -6/Zion | Archive Adv. Actuator Array | -6/Zion | Archive Hvy. Flak Cannon | -6/Zion | Archive Adv. Plasma Cannon | -6/Zion | Archive EM Shield | -6/Zion | Archive Hvy. Treads | -6/Zion | Archive Matter Compressor | -6/Zion | Archive Point Defense System | -6/Zion | Archive Focal Shield | -6/Zion | Archive Adv. Cryofiber Web | -6/Zion | Archive Adv. Shield Generator | -6/Zion | Archive Imp. System Shield | -6/Zion | Archive Nuclear Pulse Thruster | -6/Zion | Archive Field Propulsion Drive | -6/Zion | Archive Micro-nuke Launcher | -5/Factory | Hacked Cmb. Linear Gravjet | -4/Factory | Hacked Robot Schematics ------------------ B-48 Gladiator | -6/Zion | Archive S-27 Virus | -6/Zion | Archive M-22 Extractor | -6/Zion | Archive Fabricated ------------ Micro-nuke Launcher | x1 | -5/Factory | Authchip Repaired ---------- Adv. Treads | 34% | -8/Storage Angular Momentum Engine | 68% | -5/Factory Studied --------- Grenade Launcher | -8/Materials | Hacked Lgt. Treads | -8/Materials | Hacked Lightning Gun | -6/Factory | Hacked Imp. EM Pulse Cannon | -6/Factory | Hacked Alien Tech Used ----------------- None Achievements -------------- I Know It's In Here Somewhere I Survived The Infestation Packrat Challenges ------------ None Game ------ Seed CloakingTechArmor Manual? 0 Play Time 04:21:28 Cumulative 47.0 hours Start 2026.04.22 @ 06:30:58 End 2026.04.22 @ 22:38:15 Sessions 3 Manual Loads 0 Difficulty Rogue Special Mode None Game No. 28 Rogue 28 Adventurer 0 Explorer 0 Win Type - Total 0 Types 0/0/0/0/0/0/0/0/0/0 Lore% 41 Gallery% 29 Achievement% 27 Wizard Run 0 Options --------- Layout 0 ASCII 0 Keyboard 1 Movement Arrows Keybinds 0 Fullscreen 2 Font 18/SmallcapsGlow Map View 76x50 Zoom Use 0% Tactical HUD 1 Map Filters NONE Filters NONE Steam 1 RUN: 2439f63a-1c26-40da-9ebb-979b63100ff1